[Event "2026 Biel Blitz Open"]
[Site "Biel, CH"]
[Date "2026.07.19"]
[Round "1"]
[White "Ragavan, Samarth Rajesh"]
[Black "Materia, Mario"]
[Result "1-0"]
[Board "39"]
[TimeControl "180+2"]
[WhiteFideId "39918106"]
[BlackFideId "651082241"]
[WhiteElo "2101"]
[BlackElo "1723"]
[WhiteClock "0:02:47"]
[BlackClock "0:00:23"]
[Variant "Standard"]
[EndDate "2026.07.19"]
[EndTime "11:47:32"]

1. d4 {[%clk 0:03:03]}  Nf6 {[%clk 0:03:01]} 2. c4 {[%clk 0:03:05]}  e6 {[%clk 0:03:02]} 3. g3 {[%clk 0:03:06]}  d5 {[%clk 0:02:59]}
4. Bg2 {[%clk 0:03:07]}  Be7 {[%clk 0:02:58]} 5. Nf3 {[%clk 0:03:08]}  O-O {[%clk 0:02:55]} 6. O-O {[%clk 0:03:09]}  dxc4 {[%clk 0:02:52]}
7. Qc2 {[%clk 0:03:09]}  a6 {[%clk 0:02:52]} 8. a4 {[%clk 0:03:09]}  Bd7 {[%clk 0:02:50]} 9. Qxc4 {[%clk 0:03:10]}  b5 {[%clk 0:02:47]}
10. Qc2 {[%clk 0:03:07]}  Bc6 {[%clk 0:02:35]} 11. axb5 {[%clk 0:03:03]}  axb5 {[%clk 0:02:31]} 12. Rxa8 {[%clk 0:03:04]}  Bxa8 {[%clk 0:02:31]}
13. Nc3 {[%clk 0:03:01]}  b4 {[%clk 0:02:12]} 14. Na4 {[%clk 0:03:00]}  Be4 {[%clk 0:02:11]} 15. Qd1 {[%clk 0:02:59]}  Nc6 {[%clk 0:02:05]}
16. Bf4 {[%clk 0:02:54]}  Bxf3 {[%clk 0:01:47]} 17. Bxf3 {[%clk 0:02:55]}  Nxd4 {[%clk 0:01:48]} 18. Bg2 {[%clk 0:02:55]}  c5 {[%clk 0:01:47]}
19. e3 {[%clk 0:02:53]}  Nb5 {[%clk 0:01:29]} 20. Qc2 {[%clk 0:02:50]}  Qb6 {[%clk 0:00:00]} 21. Nxb6 {[%clk 0:02:50]}  Nd5 {[%clk 0:00:32]}
22. Nxd5 {[%clk 0:02:52]}  exd5 {[%clk 0:00:32]} 23. Bxd5 {[%clk 0:02:52]}  Rd8 {[%clk 0:00:32]} 24. Rd1 {[%clk 0:02:52]}  h6 {[%clk 0:00:20]}
25. Bxf7+ {[%clk 0:02:50]}  Kxf7 {[%clk 0:00:21]} 26. Rxd8 {[%clk 0:02:48]}  Bxd8 {[%clk 0:00:22]} 27. Qc4+ {[%clk 0:02:47]}  Kf8 {[%clk 0:00:23]}
28. Qxc5+ {[%clk 0:02:47]}  Be7 {[%clk 0:00:23]} 29. Qxb5 {[%clk 0:02:47]} 1-0

[Event "2026 Biel Blitz Open"]
[Site "Biel, CH"]
[Date "2026.07.19"]
[Round "1"]
[White "Boner, Timm"]
[Black "Langner, Robin"]
[Result "0-1"]
[Board "42"]
[TimeControl "180+2"]
[WhiteFideId "1330039"]
[BlackFideId "34606190"]
[WhiteElo "1705"]
[BlackElo "2059"]
[WhiteClock "0:00:38"]
[BlackClock "0:00:39"]
[Variant "Standard"]
[EndDate "2026.07.19"]
[EndTime "11:47:32"]

1. e4 {[%clk 0:03:03]}  c5 {[%clk 0:03:03]} 2. Nf3 {[%clk 0:03:04]}  d6 {[%clk 0:03:04]} 3. Nc3 {[%clk 0:03:04]}  Nf6 {[%clk 0:03:05]}
4. d4 {[%clk 0:03:04]}  cxd4 {[%clk 0:03:06]} 5. Nxd4 {[%clk 0:03:05]}  a6 {[%clk 0:03:07]} 6. Be2 {[%clk 0:03:02]}  e5 {[%clk 0:03:07]}
7. Nf3 {[%clk 0:03:02]}  Be7 {[%clk 0:03:05]} 8. O-O {[%clk 0:03:01]}  h6 {[%clk 0:02:54]} 9. h3 {[%clk 0:03:02]}  Be6 {[%clk 0:02:53]}
10. Re1 {[%clk 0:02:58]}  O-O {[%clk 0:02:50]} 11. Bd3 {[%clk 0:02:51]}  Qc7 {[%clk 0:02:45]} 12. Nd5 {[%clk 0:02:17]}  Nxd5 {[%clk 0:02:18]}
13. exd5 {[%clk 0:02:17]}  Bxd5 {[%clk 0:02:14]} 14. Bh7+ {[%clk 0:02:17]}  Kxh7 {[%clk 0:02:15]} 15. Qxd5 {[%clk 0:02:17]}  Nd7 {[%clk 0:02:12]}
16. c3 {[%clk 0:02:18]}  Kg8 {[%clk 0:02:01]} 17. Bd2 {[%clk 0:02:16]}  Rac8 {[%clk 0:01:55]} 18. a3 {[%clk 0:02:04]}  Qc6 {[%clk 0:01:47]}
19. Qxc6 {[%clk 0:02:03]}  bxc6 {[%clk 0:01:41]} 20. b4 {[%clk 0:02:02]}  Nb6 {[%clk 0:01:34]} 21. Be3 {[%clk 0:01:58]}  Nc4 {[%clk 0:01:32]}
22. Bc1 {[%clk 0:01:54]}  f6 {[%clk 0:01:26]} 23. Re4 {[%clk 0:01:52]}  d5 {[%clk 0:01:26]} 24. Rg4 {[%clk 0:01:51]}  Kf7 {[%clk 0:01:24]}
25. Nh4 {[%clk 0:01:49]}  Rfe8 {[%clk 0:01:06]} 26. Nf5 {[%clk 0:01:43]}  Bf8 {[%clk 0:01:04]} 27. h4 {[%clk 0:01:37]}  h5 {[%clk 0:00:46]}
28. Rg3 {[%clk 0:01:33]}  g6 {[%clk 0:00:45]} 29. Ne3 {[%clk 0:01:27]}  Nd6 {[%clk 0:00:44]} 30. Bb2 {[%clk 0:01:24]}  a5 {[%clk 0:00:39]}
31. bxa5 {[%clk 0:01:23]}  Rb8 {[%clk 0:00:39]} 32. Rb1 {[%clk 0:01:23]}  Ne4 {[%clk 0:00:39]} 33. Rh3 {[%clk 0:01:12]}  Nd2 {[%clk 0:00:40]}
34. Rd1 {[%clk 0:00:53]}  Rxb2 {[%clk 0:00:41]} 35. c4 {[%clk 0:00:52]}  d4 {[%clk 0:00:41]} 36. Nf1 {[%clk 0:00:49]}  Ne4 {[%clk 0:00:41]}
37. a6 {[%clk 0:00:49]}  Nc3 {[%clk 0:00:41]} 38. Ra1 {[%clk 0:00:48]}  Ra8 {[%clk 0:00:40]} 39. Ne3 {[%clk 0:00:42]}  dxe3 {[%clk 0:00:40]}
40. Rxe3 {[%clk 0:00:42]}  Ne2+ {[%clk 0:00:40]} 41. Kh2 {[%clk 0:00:42]}  Nd4 {[%clk 0:00:40]} 42. f4 {[%clk 0:00:38]}  exf4 {[%clk 0:00:39]}
43. Re4 {[%clk 0:00:39]}  c5 {[%clk 0:00:38]} 44. Rxf4 {[%clk 0:00:38]}  Bd6 {[%clk 0:00:39]} 0-1

[Event "2026 Biel Blitz Open"]
[Site "Biel, CH"]
[Date "2026.07.19"]
[Round "1"]
[White "Tahari, Youcef Nazim"]
[Black "Stefan, Iulia-Cristiana"]
[Result "0-1"]
[Board "44"]
[TimeControl "180+2"]
[WhiteFideId "282537"]
[BlackFideId "1273876"]
[WhiteElo "1691"]
[BlackElo "2050"]
[BlackTitle "WFM"]
[WhiteClock "0:00:15"]
[BlackClock "0:00:08"]
[Variant "Standard"]
[EndDate "2026.07.19"]
[EndTime "11:47:32"]

1. e4 {[%clk 0:03:02]}  e5 {[%clk 0:03:04]} 2. Nf3 {[%clk 0:03:03]}  Nc6 {[%clk 0:03:05]} 3. d4 {[%clk 0:03:04]}  exd4 {[%clk 0:03:06]}
4. Bc4 {[%clk 0:03:06]}  Nf6 {[%clk 0:03:07]} 5. e5 {[%clk 0:03:05]}  d5 {[%clk 0:03:08]} 6. Bb5 {[%clk 0:03:07]}  Nd7 {[%clk 0:03:09]}
7. O-O {[%clk 0:03:05]}  Be7 {[%clk 0:03:10]} 8. Re1 {[%clk 0:02:56]}  O-O {[%clk 0:02:57]} 9. Bf4 {[%clk 0:02:57]}  Ndb8 {[%clk 0:02:50]}
10. Nxd4 {[%clk 0:02:51]}  Nxd4 {[%clk 0:02:43]} 11. Qxd4 {[%clk 0:02:51]}  a6 {[%clk 0:02:38]} 12. Bd3 {[%clk 0:02:46]}  c5 {[%clk 0:02:28]}
13. Qe3 {[%clk 0:02:44]}  Nc6 {[%clk 0:02:08]} 14. Qg3 {[%clk 0:02:29]}  Kh8 {[%clk 0:01:49]} 15. a3 {[%clk 0:01:49]}  c4 {[%clk 0:01:42]}
16. Be2 {[%clk 0:01:38]}  Nd4 {[%clk 0:01:38]} 17. Bd1 {[%clk 0:01:17]}  Ne6 {[%clk 0:01:29]} 18. Bd2 {[%clk 0:00:58]}  f6 {[%clk 0:01:23]}
19. Nc3 {[%clk 0:00:51]}  d4 {[%clk 0:01:01]} 20. Ne4 {[%clk 0:00:48]}  f5 {[%clk 0:00:53]} 21. Nd6 {[%clk 0:00:41]}  f4 {[%clk 0:00:33]}
22. Qf3 {[%clk 0:00:43]}  Bxd6 {[%clk 0:00:32]} 23. exd6 {[%clk 0:00:42]}  Qxd6 {[%clk 0:00:16]} 24. Bb4 {[%clk 0:00:44]}  Nc5 {[%clk 0:00:17]}
25. Qh5 {[%clk 0:00:35]}  b6 {[%clk 0:00:15]} 26. Bf3 {[%clk 0:00:23]}  Rb8 {[%clk 0:00:12]} 27. Re8 {[%clk 0:00:23]}  Bd7 {[%clk 0:00:09]}
28. Re2 {[%clk 0:00:12]}  a5 {[%clk 0:00:10]} 29. Bxc5 {[%clk 0:00:10]}  bxc5 {[%clk 0:00:11]} 30. Rae1 {[%clk 0:00:11]}  Qg6 {[%clk 0:00:04]}
31. Qh4 {[%clk 0:00:10]}  Rbe8 {[%clk 0:00:08]} 32. Be4 {[%clk 0:00:10]}  Qh6 {[%clk 0:00:08]} 33. Qxh6 {[%clk 0:00:05]}  gxh6 {[%clk 0:00:07]}
34. Bd5 {[%clk 0:00:04]}  c3 {[%clk 0:00:05]} 35. bxc3 {[%clk 0:00:05]}  dxc3 {[%clk 0:00:06]} 36. Rxe8 {[%clk 0:00:03]}  Rxe8 {[%clk 0:00:07]}
37. Rxe8+ {[%clk 0:00:04]}  Bxe8 {[%clk 0:00:08]} 38. Be6 {[%clk 0:00:05]}  Kg7 {[%clk 0:00:09]} 39. Kf1 {[%clk 0:00:06]}  Kf6 {[%clk 0:00:10]}
40. Bh3 {[%clk 0:00:07]}  Ke5 {[%clk 0:00:11]} 41. Ke2 {[%clk 0:00:09]}  Bg6 {[%clk 0:00:10]} 42. Kd1 {[%clk 0:00:10]}  Kd4 {[%clk 0:00:10]}
43. Bd7 {[%clk 0:00:10]}  Bh5+ {[%clk 0:00:08]} 44. f3 {[%clk 0:00:09]}  Bg6 {[%clk 0:00:08]} 45. Be6 {[%clk 0:00:12]}  h5 {[%clk 0:00:07]}
46. Bg8 {[%clk 0:00:13]}  h4 {[%clk 0:00:08]} 47. h3 {[%clk 0:00:13]}  Be8 {[%clk 0:00:08]} 48. Bb3 {[%clk 0:00:11]}  Bb5 {[%clk 0:00:08]}
49. a4 {[%clk 0:00:15]}  Bf1 {[%clk 0:00:08]} 50. Bg8 {[%clk 0:00:12]}  h6 {[%clk 0:00:07]} 51. Ke1 {[%clk 0:00:12]}  Bxg2 {[%clk 0:00:07]}
52. Kf2 {[%clk 0:00:14]}  Bxh3 {[%clk 0:00:07]} 53. Be6 {[%clk 0:00:15]}  Bxe6 {[%clk 0:00:08]} 0-1

[Event "2026 Biel Blitz Open"]
[Site "Biel, CH"]
[Date "2026.07.19"]
[Round "1"]
[White "Xu, Chang(CQ)"]
[Black "Bachmann, Daniel"]
[Result "1-0"]
[Board "45"]
[TimeControl "180+2"]
[WhiteFideId "8641757"]
[BlackFideId "1357492"]
[WhiteElo "2049"]
[BlackElo "1689"]
[WhiteClock "0:01:21"]
[BlackClock "0:01:19"]
[Variant "Standard"]
[EndDate "2026.07.19"]
[EndTime "11:49:36"]

1. e4 {[%clk 0:03:00]}  e6 {[%clk 0:03:03]} 2. d3 {[%clk 0:02:56]}  d5 {[%clk 0:03:03]} 3. Nd2 {[%clk 0:02:56]}  Nf6 {[%clk 0:03:01]}
4. Ngf3 {[%clk 0:02:56]}  c5 {[%clk 0:02:57]} 5. g3 {[%clk 0:02:56]}  dxe4 {[%clk 0:02:56]} 6. dxe4 {[%clk 0:02:55]}  e5 {[%clk 0:02:52]}
7. Nxe5 {[%clk 0:02:39]}  Qd4 {[%clk 0:02:32]} 8. Bb5+ {[%clk 0:02:29]}  Bd7 {[%clk 0:02:18]} 9. Nxd7 {[%clk 0:02:25]}  Nbxd7 {[%clk 0:02:18]}
10. O-O {[%clk 0:02:20]}  Be7 {[%clk 0:02:09]} 11. c3 {[%clk 0:02:18]}  Qd6 {[%clk 0:02:02]} 12. e5 {[%clk 0:02:12]}  Qxe5 {[%clk 0:02:01]}
13. Re1 {[%clk 0:02:12]}  Qc7 {[%clk 0:01:42]} 14. Nc4 {[%clk 0:01:59]}  a6 {[%clk 0:01:42]} 15. Bf4 {[%clk 0:01:59]}  Qd8 {[%clk 0:01:40]}
16. Bxd7+ {[%clk 0:01:46]}  Qxd7 {[%clk 0:01:38]} 17. Qxd7+ {[%clk 0:01:30]}  Nxd7 {[%clk 0:01:11]} 18. Bd6 {[%clk 0:01:30]}  O-O {[%clk 0:01:32]}
19. Rxe7 {[%clk 0:01:29]}  Nf6 {[%clk 0:01:20]} 20. Rxb7 {[%clk 0:01:21]}  Rfe8 {[%clk 0:01:19]} 1-0

[Event "2026 Biel Blitz Open"]
[Site "Biel, CH"]
[Date "2026.07.19"]
[Round "1"]
[White "Wilhelm, Marco"]
[Black "Stefan, Romulus-Cristian"]
[Result "0-1"]
[Board "46"]
[TimeControl "180+2"]
[WhiteFideId "1347039"]
[BlackFideId "1232835"]
[WhiteElo "1684"]
[BlackElo "2048"]
[BlackTitle "CM"]
[WhiteClock "0:01:21"]
[BlackClock "0:01:03"]
[Variant "Standard"]
[EndDate "2026.07.19"]
[EndTime "11:47:32"]

1. e4 {[%clk 0:03:03]}  e5 {[%clk 0:03:03]} 2. Nf3 {[%clk 0:03:04]}  Nc6 {[%clk 0:03:04]} 3. Bb5 {[%clk 0:03:05]}  a6 {[%clk 0:03:05]}
4. Ba4 {[%clk 0:03:06]}  Nf6 {[%clk 0:03:06]} 5. O-O {[%clk 0:03:06]}  Be7 {[%clk 0:03:08]} 6. Re1 {[%clk 0:03:07]}  b5 {[%clk 0:03:09]}
7. Bb3 {[%clk 0:03:09]}  d6 {[%clk 0:03:11]} 8. c3 {[%clk 0:03:10]}  O-O {[%clk 0:03:11]} 9. d4 {[%clk 0:03:10]}  Bg4 {[%clk 0:03:12]}
10. h3 {[%clk 0:03:10]}  Bxf3 {[%clk 0:03:10]} 11. gxf3 {[%clk 0:03:00]}  a5 {[%clk 0:02:59]} 12. f4 {[%clk 0:02:58]}  a4 {[%clk 0:02:58]}
13. Bc2 {[%clk 0:02:55]}  Nd7 {[%clk 0:02:47]} 14. fxe5 {[%clk 0:02:45]}  dxe5 {[%clk 0:02:48]} 15. d5 {[%clk 0:02:44]}  Na5 {[%clk 0:02:48]}
16. b3 {[%clk 0:02:34]}  axb3 {[%clk 0:02:48]} 17. axb3 {[%clk 0:02:29]}  Bg5 {[%clk 0:02:47]} 18. Na3 {[%clk 0:02:18]}  Bxc1 {[%clk 0:02:42]}
19. Qxc1 {[%clk 0:02:19]}  Qh4 {[%clk 0:02:42]} 20. Re3 {[%clk 0:02:12]}  c6 {[%clk 0:02:39]} 21. dxc6 {[%clk 0:02:10]}  Nxc6 {[%clk 0:02:40]}
22. Nxb5 {[%clk 0:02:09]}  Nf6 {[%clk 0:02:32]} 23. Rxa8 {[%clk 0:02:07]}  Rxa8 {[%clk 0:02:34]} 24. Bd1 {[%clk 0:01:58]}  Rd8 {[%clk 0:02:25]}
25. b4 {[%clk 0:01:53]}  Ne7 {[%clk 0:02:26]} 26. Nc7 {[%clk 0:01:52]}  Nxe4 {[%clk 0:02:20]} 27. Qc2 {[%clk 0:01:44]}  Ng5 {[%clk 0:01:10]}
28. Bg4 {[%clk 0:01:37]}  h5 {[%clk 0:01:04]} 29. Be2 {[%clk 0:01:23]}  Nxh3+ {[%clk 0:01:04]} 30. Kf1 {[%clk 0:01:21]}  Qxf2# {[%clk 0:01:03]} 0-1

[Event "2026 Biel Blitz Open"]
[Site "Biel, CH"]
[Date "2026.07.19"]
[Round "1"]
[White "Bajraktari, Perparim"]
[Black "Schreiber, Edwin"]
[Result "1-0"]
[Board "47"]
[TimeControl "180+2"]
[WhiteFideId "1307711"]
[BlackFideId "2011921"]
[WhiteElo "2045"]
[BlackElo "1682"]
[WhiteClock "0:02:32"]
[BlackClock "0:00:07"]
[Variant "Standard"]
[EndDate "2026.07.19"]
[EndTime "11:47:32"]

1. c4 {[%clk 0:03:02]}  e5 {[%clk 0:03:02]} 2. Nc3 {[%clk 0:03:03]}  Nc6 {[%clk 0:03:02]} 3. g3 {[%clk 0:03:04]}  Bc5 {[%clk 0:03:02]}
4. Bg2 {[%clk 0:03:06]}  a6 {[%clk 0:03:03]} 5. Nf3 {[%clk 0:03:06]}  d6 {[%clk 0:03:04]} 6. d3 {[%clk 0:03:08]}  Nge7 {[%clk 0:02:50]}
7. O-O {[%clk 0:03:09]}  h5 {[%clk 0:02:50]} 8. h4 {[%clk 0:03:08]}  Nf5 {[%clk 0:02:18]} 9. e3 {[%clk 0:03:08]}  Be6 {[%clk 0:01:43]}
10. Nd5 {[%clk 0:03:08]}  Bxd5 {[%clk 0:01:31]} 11. cxd5 {[%clk 0:03:06]}  Nce7 {[%clk 0:01:31]} 12. e4 {[%clk 0:02:58]}  Nxg3 {[%clk 0:01:28]}
13. d4 {[%clk 0:02:58]}  Nxf1 {[%clk 0:01:08]} 14. dxc5 {[%clk 0:02:58]}  Ng6 {[%clk 0:00:49]} 15. Bg5 {[%clk 0:02:52]}  f6 {[%clk 0:00:43]}
16. Bc1 {[%clk 0:02:52]}  Qd7 {[%clk 0:00:20]} 17. Kxf1 {[%clk 0:02:40]}  Qg4 {[%clk 0:00:19]} 18. cxd6 {[%clk 0:02:39]}  cxd6 {[%clk 0:00:20]}
19. Qa4+ {[%clk 0:02:39]}  Kf7 {[%clk 0:00:07]} 20. Be3 {[%clk 0:02:32]} 1-0

[Event "2026 Biel Blitz Open"]
[Site "Biel, CH"]
[Date "2026.07.19"]
[Round "1"]
[White "Chu, Wa Ching David"]
[Black "Nguyen Thi Mai Hung"]
[Result "0-1"]
[Board "48"]
[TimeControl "180+2"]
[WhiteFideId "6013180"]
[BlackFideId "12401676"]
[WhiteElo "1673"]
[BlackElo "2039"]
[BlackTitle "WGM"]
[WhiteClock "0:00:25"]
[BlackClock "0:00:28"]
[Variant "Standard"]
[EndDate "2026.07.19"]
[EndTime "11:47:32"]

1. d4 {[%clk 0:03:02]}  d5 {[%clk 0:03:03]} 2. c4 {[%clk 0:03:03]}  c6 {[%clk 0:03:04]} 3. cxd5 {[%clk 0:03:04]}  cxd5 {[%clk 0:03:05]}
4. Bg5 {[%clk 0:03:04]}  Nc6 {[%clk 0:03:04]} 5. Nf3 {[%clk 0:03:05]}  Bf5 {[%clk 0:03:03]} 6. Nc3 {[%clk 0:02:59]}  h6 {[%clk 0:02:58]}
7. Bf4 {[%clk 0:03:00]}  Nf6 {[%clk 0:02:58]} 8. e3 {[%clk 0:03:00]}  e6 {[%clk 0:02:58]} 9. Bd3 {[%clk 0:03:01]}  Bg4 {[%clk 0:02:57]}
10. h3 {[%clk 0:03:02]}  Bh5 {[%clk 0:02:58]} 11. Be2 {[%clk 0:03:02]}  Be7 {[%clk 0:02:54]} 12. Ne5 {[%clk 0:03:01]}  Bxe2 {[%clk 0:02:53]}
13. Qxe2 {[%clk 0:03:02]}  O-O {[%clk 0:02:53]} 14. O-O {[%clk 0:03:01]}  Rc8 {[%clk 0:02:54]} 15. Rac1 {[%clk 0:03:01]}  a6 {[%clk 0:02:36]}
16. Nxc6 {[%clk 0:02:45]}  Rxc6 {[%clk 0:02:37]} 17. Na4 {[%clk 0:02:44]}  Qc8 {[%clk 0:02:24]} 18. Rxc6 {[%clk 0:01:48]}  Qxc6 {[%clk 0:02:25]}
19. Nc3 {[%clk 0:01:46]}  Rc8 {[%clk 0:02:24]} 20. Be5 {[%clk 0:01:38]}  Nd7 {[%clk 0:02:06]} 21. Bf4 {[%clk 0:01:37]}  b5 {[%clk 0:02:07]}
22. a3 {[%clk 0:01:38]}  Nb6 {[%clk 0:01:45]} 23. Qg4 {[%clk 0:01:21]}  Kh7 {[%clk 0:01:21]} 24. Be5 {[%clk 0:01:16]}  f6 {[%clk 0:01:08]}
25. Bg3 {[%clk 0:01:11]}  Nc4 {[%clk 0:01:09]} 26. Qe2 {[%clk 0:01:04]}  Nxa3 {[%clk 0:00:47]} 27. Nxd5 {[%clk 0:00:56]}  exd5 {[%clk 0:00:38]}
28. Qd3+ {[%clk 0:00:55]}  Kh8 {[%clk 0:00:37]} 29. bxa3 {[%clk 0:00:56]}  Qc4 {[%clk 0:00:35]} 30. Qf5 {[%clk 0:00:56]}  Bxa3 {[%clk 0:00:35]}
31. Ra1 {[%clk 0:00:53]}  b4 {[%clk 0:00:36]} 32. Bd6 {[%clk 0:00:50]}  a5 {[%clk 0:00:37]} 33. Qe6 {[%clk 0:00:38]}  Qc6 {[%clk 0:00:36]}
34. Qe7 {[%clk 0:00:23]}  Qe8 {[%clk 0:00:31]} 35. Qa7 {[%clk 0:00:18]}  a4 {[%clk 0:00:27]} 36. Qa5 {[%clk 0:00:13]}  Qc6 {[%clk 0:00:20]}
37. Bxb4 {[%clk 0:00:13]}  Ra8 {[%clk 0:00:22]} 38. Qc5 {[%clk 0:00:12]}  Qxc5 {[%clk 0:00:22]} 39. Bxc5 {[%clk 0:00:13]}  Bb2 {[%clk 0:00:22]}
40. Ra2 {[%clk 0:00:14]}  a3 {[%clk 0:00:23]} 41. Kf1 {[%clk 0:00:15]}  Kg8 {[%clk 0:00:18]} 42. Ke2 {[%clk 0:00:16]}  Kf7 {[%clk 0:00:19]}
43. Kd3 {[%clk 0:00:18]}  Ke6 {[%clk 0:00:21]} 44. Kc2 {[%clk 0:00:17]}  Kf5 {[%clk 0:00:22]} 45. Bb4 {[%clk 0:00:13]}  Ke4 {[%clk 0:00:21]}
46. Bc3 {[%clk 0:00:14]}  Rc8 {[%clk 0:00:21]} 47. Rxb2 {[%clk 0:00:10]}  axb2 {[%clk 0:00:21]} 48. Kxb2 {[%clk 0:00:11]}  Kd3 {[%clk 0:00:23]}
49. Bb4 {[%clk 0:00:12]}  Rc2+ {[%clk 0:00:24]} 50. Kb3 {[%clk 0:00:14]}  Rxf2 {[%clk 0:00:25]} 51. Bf8 {[%clk 0:00:14]}  Rxg2 {[%clk 0:00:26]}
52. Kb4 {[%clk 0:00:13]}  Kxe3 {[%clk 0:00:26]} 53. Kc5 {[%clk 0:00:15]}  Ke4 {[%clk 0:00:27]} 54. Bd6 {[%clk 0:00:15]}  f5 {[%clk 0:00:28]}
55. Be5 {[%clk 0:00:13]}  g5 {[%clk 0:00:28]} 56. Kd6 {[%clk 0:00:16]}  f4 {[%clk 0:00:29]} 57. Ke6 {[%clk 0:00:17]}  f3 {[%clk 0:00:30]}
58. Kd6 {[%clk 0:00:17]}  f2 {[%clk 0:00:31]} 59. Ke6 {[%clk 0:00:19]}  f1=Q {[%clk 0:00:31]} 60. Kd6 {[%clk 0:00:19]}  Qf5 {[%clk 0:00:32]}
61. Kc6 {[%clk 0:00:20]}  Qe6+ {[%clk 0:00:32]} 62. Kb5 {[%clk 0:00:22]}  Rc2 {[%clk 0:00:33]} 63. Kb4 {[%clk 0:00:23]}  Qb6+ {[%clk 0:00:32]}
64. Ka3 {[%clk 0:00:22]}  Rc8 {[%clk 0:00:34]} 65. Ka2 {[%clk 0:00:25]}  Ra8# {[%clk 0:00:28]} 0-1

[Event "2026 Biel Blitz Open"]
[Site "Biel, CH"]
[Date "2026.07.19"]
[Round "1"]
[White "Marinkovic, Zoran"]
[Black "Kamildjanov, Saidbek"]
[Result "0-1"]
[Board "49"]
[TimeControl "180+2"]
[WhiteFideId "1346083"]
[BlackFideId "151105026"]
[WhiteElo "2037"]
[BlackElo "1659"]
[WhiteClock "0:00:48"]
[BlackClock "0:01:10"]
[Variant "Standard"]
[EndDate "2026.07.19"]
[EndTime "11:47:32"]

1. e4 {[%clk 0:03:03]}  e5 {[%clk 0:03:03]} 2. Nf3 {[%clk 0:03:03]}  Nc6 {[%clk 0:03:04]} 3. d4 {[%clk 0:03:03]}  exd4 {[%clk 0:03:04]}
4. Nxd4 {[%clk 0:03:05]}  Bc5 {[%clk 0:03:05]} 5. Be3 {[%clk 0:03:05]}  Bxd4 {[%clk 0:03:04]} 6. Bxd4 {[%clk 0:03:06]}  Nxd4 {[%clk 0:03:05]}
7. Qxd4 {[%clk 0:03:02]}  Qf6 {[%clk 0:03:04]} 8. e5 {[%clk 0:02:58]}  Qc6 {[%clk 0:03:01]} 9. Nc3 {[%clk 0:02:56]}  Ne7 {[%clk 0:03:01]}
10. O-O-O {[%clk 0:02:45]}  O-O {[%clk 0:02:58]} 11. h4 {[%clk 0:02:25]}  Nf5 {[%clk 0:02:32]} 12. Qf4 {[%clk 0:02:14]}  d6 {[%clk 0:02:29]}
13. exd6 {[%clk 0:01:59]}  Nxd6 {[%clk 0:02:29]} 14. h5 {[%clk 0:01:49]}  h6 {[%clk 0:02:24]} 15. Bd3 {[%clk 0:01:42]}  Be6 {[%clk 0:02:11]}
16. Ne4 {[%clk 0:01:27]}  Nxe4 {[%clk 0:01:53]} 17. Qxe4 {[%clk 0:01:25]}  Qxe4 {[%clk 0:01:53]} 18. Bxe4 {[%clk 0:01:26]}  c6 {[%clk 0:01:54]}
19. a3 {[%clk 0:01:24]}  Rfd8 {[%clk 0:01:54]} 20. f3 {[%clk 0:01:15]}  Rxd1+ {[%clk 0:01:29]} 21. Rxd1 {[%clk 0:01:16]}  Kf8 {[%clk 0:01:25]}
22. g4 {[%clk 0:00:59]}  Ke7 {[%clk 0:01:25]} 23. Re1 {[%clk 0:01:00]}  Kf8 {[%clk 0:01:10]} 24. Kd2 {[%clk 0:00:56]}  Re8 {[%clk 0:01:11]}
25. Kc3 {[%clk 0:00:54]}  Bd5 {[%clk 0:01:12]} 26. Kd4 {[%clk 0:00:53]}  Bxe4 {[%clk 0:01:11]} 27. Rxe4 {[%clk 0:00:54]}  Rxe4+ {[%clk 0:01:12]}
28. Kxe4 {[%clk 0:00:55]}  Ke7 {[%clk 0:01:13]} 29. Ke5 {[%clk 0:00:55]}  Kd7 {[%clk 0:01:11]} 30. f4 {[%clk 0:00:55]}  f6+ {[%clk 0:01:09]}
31. Kf5 {[%clk 0:00:54]}  Ke7 {[%clk 0:01:09]} 32. Kg6 {[%clk 0:00:54]}  Kf8 {[%clk 0:01:11]} 33. g5 {[%clk 0:00:51]}  fxg5 {[%clk 0:01:11]}
34. fxg5 {[%clk 0:00:52]}  hxg5 {[%clk 0:01:10]} 35. Kxg5 {[%clk 0:00:53]}  b5 {[%clk 0:01:11]} 36. b4 {[%clk 0:00:54]}  a6 {[%clk 0:01:11]}
37. Kg6 {[%clk 0:00:54]}  Kg8 {[%clk 0:01:10]} 38. Kf5 {[%clk 0:00:55]}  Kf7 {[%clk 0:01:11]} 39. Ke5 {[%clk 0:00:56]}  Ke7 {[%clk 0:01:11]}
40. c3 {[%clk 0:00:55]}  Kf7 {[%clk 0:01:03]} 41. Kd6 {[%clk 0:00:56]}  Kf6 {[%clk 0:01:05]} 42. Kxc6 {[%clk 0:00:57]}  Kg5 {[%clk 0:01:06]}
43. Kb6 {[%clk 0:00:54]}  Kxh5 {[%clk 0:01:07]} 44. Kxa6 {[%clk 0:00:47]}  g5 {[%clk 0:01:08]} 45. Kxb5 {[%clk 0:00:48]}  g4 {[%clk 0:01:10]}
46. c4 {[%clk 0:00:49]}  g3 {[%clk 0:01:10]} 47. c5 {[%clk 0:00:48]}  g2 {[%clk 0:01:10]} 48. Kb6 {[%clk 0:00:48]}  g1=Q {[%clk 0:01:10]} 0-1

[Event "2026 Biel Blitz Open"]
[Site "Biel, CH"]
[Date "2026.07.19"]
[Round "1"]
[White "Fedal, Salem"]
[Black "Rappazzo, Johannes"]
[Result "0-1"]
[Board "50"]
[TimeControl "180+2"]
[WhiteFideId "1313797"]
[BlackFideId "1340069"]
[WhiteElo "1656"]
[BlackElo "2032"]
[BlackTitle "FM"]
[WhiteClock "0:01:00"]
[BlackClock "0:03:02"]
[Variant "Standard"]
[EndDate "2026.07.19"]
[EndTime "11:47:32"]

1. e4 {[%clk 0:03:02]}  c5 {[%clk 0:03:04]} 2. Nc3 {[%clk 0:03:02]}  d6 {[%clk 0:03:05]} 3. Nf3 {[%clk 0:03:03]}  Nf6 {[%clk 0:03:06]}
4. Bb5+ {[%clk 0:03:03]}  Nbd7 {[%clk 0:03:06]} 5. d3 {[%clk 0:03:03]}  a6 {[%clk 0:03:08]} 6. Bxd7+ {[%clk 0:03:03]}  Bxd7 {[%clk 0:03:09]}
7. Bg5 {[%clk 0:03:02]}  e6 {[%clk 0:03:09]} 8. Qe2 {[%clk 0:03:01]}  Be7 {[%clk 0:03:10]} 9. O-O-O {[%clk 0:03:00]}  O-O {[%clk 0:03:09]}
10. Rhe1 {[%clk 0:03:00]}  b5 {[%clk 0:03:10]} 11. a3 {[%clk 0:02:56]}  b4 {[%clk 0:03:11]} 12. axb4 {[%clk 0:02:55]}  cxb4 {[%clk 0:03:12]}
13. Nb1 {[%clk 0:02:55]}  h6 {[%clk 0:03:06]} 14. Bxf6 {[%clk 0:02:55]}  Bxf6 {[%clk 0:03:06]} 15. d4 {[%clk 0:02:54]}  d5 {[%clk 0:03:02]}
16. exd5 {[%clk 0:02:50]}  exd5 {[%clk 0:03:04]} 17. Qd3 {[%clk 0:02:42]}  a5 {[%clk 0:02:57]} 18. Ne5 {[%clk 0:02:37]}  a4 {[%clk 0:02:50]}
19. Nxd7 {[%clk 0:02:31]}  Qxd7 {[%clk 0:02:51]} 20. Re3 {[%clk 0:02:10]}  Bg5 {[%clk 0:02:51]} 21. Rde1 {[%clk 0:01:49]}  a3 {[%clk 0:02:51]}
22. bxa3 {[%clk 0:01:48]}  bxa3 {[%clk 0:02:52]} 23. Nxa3 {[%clk 0:01:44]}  Qa4 {[%clk 0:02:53]} 24. Kd1 {[%clk 0:01:35]}  Bxe3 {[%clk 0:02:49]}
25. Rxe3 {[%clk 0:01:35]}  Rfe8 {[%clk 0:02:43]} 26. Rg3 {[%clk 0:01:30]}  Qb4 {[%clk 0:02:39]} 27. Qf3 {[%clk 0:01:00]}  Re1# {[%clk 0:03:02]} 0-1